bitfinex/quotes_ETHUSD_20251021
["timestamp","ask_amount","ask_price","bid_price","bid_amount"]
[1761055410476,14.81696825,3881.9,3881.8,0.002]
[1761055410692,15.05261551,3881.9,3881.8,0.002]
[1761055410891,14.13539896,3881.9,3881.8,0.002]
[1761055411199,2.57685163,3880.8,3879.7,2.57748524]
[1761055411507,2.57667591,3881.0,3879.6,2.57758531]
[1761055411508,4.63608892,3880.7,3879.6,2.57758531]
[1761055411673,0.54748892,3880.6,3880.3,2.57710016]
[1761055411872,0.54748892,3880.6,3880.4,2.57703088]
[1761055412099,3.427,3880.8,3879.6,0.50688]
[1761055412283,3.18389578,3881.8,3879.6,0.50688]
[1761055412284,3.427,3881.0,3880.9,2.5766577]
[1761055412478,3.427,3881.1,3881.0,2.5766555]
[1761055412688,3.97768905,3881.1,3881.0,2.5766555]
[1761055413499,0.68797481,3881.8,3881.0,0.96714121]
[1761055413702,0.68797481,3882.3,3881.2,3.08340272]
[1761055413867,1.78002709,3882.8,3882.7,2.57552733]
[1761055413868,0.40407746,3882.8,3882.7,2.57552733]
[1761055414068,0.40407746,3882.8,3882.3,2.5757927]
[1761055414069,1.728,3882.8,3882.3,2.57574397]
[1761055414268,0.55124682,3882.7,3882.6,2.57558057]
[1761055415006,3.6583,3882.9,3882.8,2.575461]
[1761055415308,0.55134058,3882.9,3882.8,3.09056516]
[1761055415601,0.55134058,3882.9,3882.2,0.1643]
[1761055415602,0.2309,3882.9,3882.2,0.1643]
[1761055416296,0.55136866,3883.1,3882.8,2.575461]
[1761055416551,0.55136866,3883.1,3883.0,2.57532835]
[1761055416667,0.68797481,3883.9,3883.8,2.57479787]
[1761055416868,0.68797481,3883.9,3882.9,0.4518]
[1761055416869,0.55144425,3883.9,3883.6,2.57493047]
[1761055417211,0.13833498,3884.2,3884.1,2.574599]
[1761055417367,0.68994037,3884.2,3884.1,2.574599]
[1761055417574,0.13833498,3884.2,3884.1,3.08953139]
[1761055417866,0.13833498,3884.2,3883.5,0.1643]
[1761055418067,1.728,3884.0,3882.7,0.1643]
[1761055418291,0.2309,3883.6,3882.7,0.1643]
[1761055418503,3.434,3883.5,3883.4,2.57506308]
[1761055418868,3.434,3883.8,3883.5,2.57498281]
[1761055419068,0.55160106,3883.7,3883.4,2.57499998]
[1761055419270,0.55160106,3883.7,3883.3,2.57510575]
[1761055419512,0.55160106,3883.7,3883.0,2.57532124]
[1761055419692,0.55160106,3883.7,3883.2,0.128]
[1761055420218,0.55160106,3883.7,3883.4,2.57506173]
[1761055420397,0.98605117,3883.7,3883.2,0.128]
[1761055420602,0.128,3883.4,3882.8,0.128]
[1761055421115,0.2309,3882.9,3882.5,2.57565563]
[1761055421415,3.433,3883.3,3882.7,2.57548994]
[1761055421416,0.55160106,3883.2,3882.7,2.57548994]
[1761055421644,0.128,3883.1,3882.7,2.57548994]
[1761055421876,0.128,3883.1,3882.5,0.128]
[1761055422173,2.57563627,3882.6,3881.8,0.002]
[1761055422301,2.57584775,3882.3,3881.8,0.002]
[1761055422502,2.57599444,3882.0,3881.8,0.002]
[1761055422745,8.28865917,3881.9,3881.8,0.002]
[1761055422942,27.75930964,3881.9,3881.8,0.002]
[1761055423142,31.79781339,3881.9,3881.8,0.002]
[1761055423461,32.76334327,3881.9,3881.8,0.002]
[1761055423745,32.76334327,3881.9,3879.4,2.57766549]
[1761055423746,14.75841158,3881.5,3879.4,0.2243]
[1761055423953,15.23353179,3881.5,3879.4,0.2243]
[1761055424105,13.22584613,3881.5,3880.1,2.57719979]
[1761055424304,30.1203116,3881.5,3880.3,2.57711239]
[1761055424540,29.6630336,3881.5,3880.2,2.57713488]
[1761055424715,30.58077308,3881.5,3880.2,2.57713488]
[1761055425049,28.9913136,3881.5,3879.5,0.4518]
[1761055425372,23.48371602,3881.5,3880.4,2.57700313]
[1761055425535,21.75025153,3881.5,3880.0,0.4518]
[1761055425851,2.27960106,3881.5,3880.4,2.57700001]
[1761055426049,24.32657511,3881.5,3880.7,2.57683872]
[1761055426205,21.75025153,3881.5,3880.8,2.57676922]
[1761055426609,24.32657511,3881.5,3880.1,0.2124]
[1761055426810,26.96275911,3881.5,3880.7,2.57680056]
[1761055427039,24.34230171,3881.5,3880.6,2.57688153]
[1761055427247,27.77830171,3881.5,3880.9,2.57670106]
[1761055427550,27.77830171,3881.5,3880.1,0.2124]
[1761055427716,25.18625153,3881.5,3880.1,0.2124]
[1761055427917,25.18625153,3881.5,3880.8,2.57673263]
[1761055428134,25.18625153,3881.5,3880.9,2.57671575]
[1761055428302,30.27957953,3881.5,3880.4,2.57699674]
[1761055428502,25.18625153,3881.5,3880.9,2.57671367]
[1761055429002,25.18625153,3881.5,3880.8,2.57676903]
[1761055429451,27.76257511,3881.5,3880.7,2.57683841]
[1761055429673,30.54053311,3881.5,3880.1,0.2124]
[1761055429835,33.13258329,3881.5,3879.8,0.2124]
[1761055430026,33.13258329,3881.5,3879.9,2.57737994]
[1761055430223,33.13258329,3881.5,3880.4,0.4518]
[1761055430224,4.87165124,3881.5,3880.4,0.4518]
[1761055430425,10.63107264,3881.5,3879.8,0.2124]
[1761055430654,10.63107264,3881.5,3880.6,2.5769023]
[1761055430968,10.63107264,3881.5,3880.3,2.57706102]
[1761055431148,14.19724531,3881.5,3879.8,0.2124]
[1761055431454,28.90015258,3881.1,3880.0,2.57727072]
[1761055431634,30.59946264,3881.1,3880.1,2.57725115]
[1761055432133,7.72767806,3881.1,3880.2,0.2124]
[1761055432455,11.10803498,3881.1,3880.2,2.57717476]
[1761055432653,11.10803498,3881.1,3879.6,0.4518]
[1761055432826,30.57868545,3881.1,3879.8,2.57743923]
[1761055433030,32.83864945,3881.1,3879.7,0.1288]
[1761055433264,31.69114945,3881.1,3879.7,0.1288]
[1761055433430,32.19802945,3881.1,3879.4,0.2243]
[1761055433629,32.19802945,3881.1,3879.4,0.3531]
[1761055433836,32.19802945,3881.1,3879.8,2.57743512]
[1761055434042,25.95301934,3881.1,3879.4,0.3531]
[1761055434246,25.95301934,3881.1,3880.3,2.57710948]
[1761055434444,28.52960845,3881.1,3880.2,2.57716997]
[1761055434759,6.48236887,3881.1,3880.4,2.57705005]
[1761055434961,8.28619017,3881.1,3880.4,2.57705005]
[1761055435168,8.28619017,3881.1,3880.4,0.4665]
[1761055435169,2.27960106,3881.1,3880.4,0.4665]
[1761055435380,0.1288,3881.5,3881.0,3.0451309]
[1761055435536,3.5548,3881.5,3881.3,2.57640817]
[1761055435732,3.5548,3881.5,3881.2,2.57651573]
[1761055435937,3.5548,3881.5,3881.1,2.80088398]
[1761055436258,3.5548,3881.5,3881.4,2.57638996]
[1761055436435,3.5548,3881.5,3881.2,2.57651502]
[1761055436649,3.5548,3881.5,3881.1,3.09405619]
[1761055436854,3.5548,3881.5,3881.4,2.57638996]
[1761055437056,20.13230693,3882.9,3881.7,2.57616082]
[1761055437263,0.1288,3881.8,3881.7,2.57616082]
[1761055437477,3.5548,3881.8,3881.1,3.22284705]
[1761055437679,3.5548,3881.8,3881.2,2.57652272]
[1761055438350,3.5548,3881.8,3881.5,2.57631274]
[1761055438551,3.5548,3881.8,3881.7,2.57619084]
[1761055438951,3.5548,3881.8,3881.0,0.002]
[1761055438952,3.91028,3881.8,3881.0,0.002]
[1761055439151,3.91028,3881.8,3881.2,2.57647551]
[1761055439152,0.1288,3881.4,3881.2,2.57647551]
[1761055439452,3.424,3881.3,3881.2,2.57647551]
[1761055439679,2.57598488,3882.1,3881.3,2.57642389]
[1761055439680,3.424,3881.5,3881.3,2.57642389]
[1761055439848,3.424,3881.5,3881.4,2.57638996]
[1761055440255,2.21447725,3882.8,3881.9,2.57600391]
[1761055440563,5.70136331,3882.7,3881.9,2.57604344]
[1761055440763,2.57587053,3882.2,3881.5,2.57630345]
[1761055440982,2.57599462,3882.0,3881.1,2.80087965]
[1761055441188,3.424,3882.1,3881.2,0.4665]
[1761055441361,3.424,3882.1,3881.6,2.57620524]
[1761055441569,3.424,3882.1,3881.2,0.4665]
[1761055441781,0.001,3881.9,3881.2,0.4665]
[1761055441977,2.5761821,3881.8,3881.1,2.57654548]
[1761055442177,0.001,3881.9,3881.0,0.002]
[1761055442178,3.423,3881.7,3881.0,0.002]
[1761055442368,2.57630318,3881.6,3881.0,0.002]
[1761055442564,5.989139,3881.5,3881.0,0.002]
[1761055442786,0.9412139,3881.4,3881.0,0.002]
[1761055442963,3.423,3881.3,3881.0,0.002]
[1761055443501,2.57658911,3881.1,3881.0,0.002]
[1761055443667,5.99946642,3881.3,3881.0,0.002]
[1761055443668,3.423,3881.3,3881.0,0.002]
[1761055443871,0.001,3881.9,3881.2,0.2243]
[1761055444067,0.001,3881.9,3881.4,2.57638996]
[1761055444370,0.001,3881.9,3881.3,2.57645634]
[1761055444574,0.001,3881.9,3881.4,2.57633996]
[1761055444879,0.001,3881.9,3881.6,2.57624516]
[1761055445320,0.2273,3881.9,3881.2,0.2243]
[1761055445608,0.85002949,3881.9,3881.0,0.002]
[1761055445767,3.557634,3881.8,3881.0,0.002]
[1761055445977,1.728,3881.7,3881.1,2.80083968]
[1761055446216,3.422,3881.6,3881.1,2.80086667]
[1761055446703,3.422,3881.6,3881.1,0.2243]
[1761055447067,2.57632732,3881.5,3881.0,0.002]
[1761055447390,4.10681111,3881.6,3881.0,0.002]
[1761055447589,2.27908008,3881.5,3881.0,0.002]
[1761055447790,1.728,3881.5,3881.0,0.002]
[1761055448002,1.728,3881.5,3881.1,2.57658835]
[1761055448301,0.85002949,3881.9,3881.0,0.002]
[1761055448302,3.421,3881.4,3881.0,0.002]
[1761055448521,3.421,3881.3,3881.0,0.002]
[1761055448702,2.57657748,3881.2,3881.0,0.002]
[1761055449018,3.421,3881.3,3881.0,0.002]
[1761055449184,2.57657808,3881.2,3881.0,0.002]
[1761055449503,2.57652894,3881.2,3881.0,0.002]
[1761055449686,5.9974713,3881.3,3881.0,0.002]
[1761055450017,0.1288,3881.1,3881.0,0.002]
[1761055450170,0.1288,3881.1,3881.0,2.5786555]
[1761055450373,3.421,3881.3,3881.2,2.57652272]
[1761055451106,3.421,3881.3,3881.0,2.57860346]
[1761055451296,3.421,3881.3,3881.1,2.57658899]
[1761055451498,3.421,3881.3,3881.2,2.57652272]
[1761055452001,3.421,3881.3,3881.0,0.002]
[1761055452204,0.55349704,3881.2,3881.0,0.002]
[1761055452705,0.68232086,3881.2,3881.0,2.57864281]
[1761055452891,0.55352086,3881.2,3881.0,0.002]
[1761055453917,0.55352086,3881.2,3881.1,3.04308911]
[1761055454075,0.001,3881.9,3881.8,2.57612447]
[1761055454279,0.001,3881.9,3881.1,1.25297677]
[1761055454280,0.001,3881.9,3881.6,0.1288]
[1761055454473,0.001,3881.9,3881.4,0.1288]
[1761055454474,3.421,3881.8,3881.4,0.1288]
[1761055454675,0.1288,3881.6,3881.1,0.2243]
[1761055454876,0.1288,3881.6,3881.1,2.57653395]
[1761055455076,0.1288,3881.6,3881.0,0.002]
[1761055455077,0.90375283,3881.6,3881.0,0.002]
[1761055455282,2.70527121,3881.3,3881.0,0.002]
[1761055455572,2.57658911,3881.1,3881.0,0.002]
[1761055455796,3.13019104,3881.1,3881.0,0.002]
[1761055456016,5.05189104,3881.1,3881.0,0.002]
[1761055456196,6.15682694,3881.1,3881.0,0.002]
[1761055456807,3.38653783,3881.1,3881.0,0.002]
[1761055456974,2.41040193,3881.1,3881.0,0.002]
[1761055457392,2.60410193,3881.1,3881.0,0.002]
[1761055457872,2.41040193,3881.1,3881.0,0.002]
[1761055459407,5.18069104,3881.1,3881.0,0.002]
[1761055459614,6.29850659,3881.1,3881.0,0.002]
[1761055459973,6.10480659,3881.1,3881.0,0.002]
[1761055460207,3.52821748,3881.1,3881.0,0.002]
[1761055460441,5.18069104,3881.1,3881.0,0.002]
[1761055460582,12.44295104,3881.1,3881.0,0.002]
[1761055461199,13.36069052,3881.1,3881.0,0.002]
[1761055461418,12.44295104,3881.1,3881.0,0.002]
[1761055461584,15.00344428,3881.1,3881.0,0.002]
[1761055461985,11.83126976,3881.1,3881.0,0.002]
[1761055462314,10.69126976,3881.1,3881.0,0.002]
[1761055462692,8.17194576,3881.1,3881.0,0.002]
[1761055463021,5.70260193,3881.1,3881.0,0.002]
[1761055463196,8.47289104,3881.1,3881.0,0.002]
[1761055463396,5.70260193,3881.1,3881.0,0.002]
[1761055463931,8.27919104,3881.1,3881.0,0.002]
[1761055464231,15.92081904,3881.1,3881.0,0.002]
[1761055464418,17.90274127,3881.1,3881.0,0.002]
[1761055464729,10.26111327,3881.1,3881.0,0.002]
[1761055465019,8.27919104,3881.1,3881.0,0.002]
[1761055465519,5.83140193,3881.1,3881.0,0.002]
[1761055466229,3.97460193,3881.1,3881.0,3.0474555]
[1761055466383,0.1288,3881.4,3881.1,2.5765734]
[1761055466588,3.421,3881.3,3881.1,3.2620734]
[1761055466814,3.421,3881.3,3881.2,3.04527571]
[1761055467016,3.9743534,3881.3,3881.2,3.04527571]
[1761055467390,4.1754534,3881.3,3881.0,0.002]
[1761055467696,0.5533534,3881.2,3881.0,0.002]
[1761055467895,0.5533534,3881.2,3881.1,0.2167]
[1761055468120,0.5533534,3881.2,3881.0,0.002]
[1761055468319,3.421,3881.2,3881.0,0.002]
[1761055468622,0.5533534,3881.1,3881.0,0.002]
[1761055468798,3.421,3881.2,3881.0,0.4708]
[1761055469121,3.421,3881.2,3881.0,0.6875]
[1761055469318,3.421,3881.2,3881.0,3.26414923]
[1761055469490,3.421,3881.2,3881.1,2.57658911]
[1761055469689,3.9741542,3881.2,3881.0,3.26413359]
[1761055470019,3.42,3881.3,3881.0,3.26410047]
[1761055470219,0.55315124,3881.2,3881.1,2.57658911]
[1761055470649,0.001,3881.5,3881.1,3.65523653]
[1761055470872,0.001,3881.9,3881.8,2.57612447]
[1761055471154,0.001,3881.9,3881.2,0.4688]
[1761055471365,0.001,3881.9,3881.3,0.4688]
[1761055471543,0.001,3881.9,3881.0,0.2187]
[1761055471723,0.5619,3881.9,3881.0,0.2187]
[1761055472222,3.69144485,3881.9,3881.0,0.2187]
[1761055472570,0.55342281,3881.8,3881.3,2.57645619]
[1761055472720,3.42,3881.7,3881.3,2.57645619]
[1761055472920,0.55342281,3881.6,3881.2,2.57650099]
[1761055473149,0.55342281,3881.6,3881.2,2.57651648]
[1761055473347,0.55342281,3881.6,3881.3,2.5764032]
[1761055473720,3.42,3881.7,3881.3,2.57642221]
[1761055474050,3.42,3881.7,3881.0,0.2187]
[1761055474279,0.55373213,3881.6,3881.0,0.2187]
[1761055474563,0.55373213,3881.6,3881.0,0.6875]
[1761055474749,3.42,3881.5,3881.3,2.57645584]
[1761055474957,3.42,3881.5,3881.0,0.6875]
[1761055475148,3.42,3881.5,3881.0,3.26413833]
[1761055475321,3.42,3881.5,3881.0,0.6875]
[1761055475521,0.55375751,3881.4,3881.0,3.26415234]
[1761055475721,3.42,3881.5,3881.3,2.57645634]
[1761055475950,3.42,3881.5,3881.4,2.57638996]
[1761055476149,3.9737723,3881.5,3881.4,2.57638996]
[1761055476332,0.001,3881.9,3881.4,0.4688]
[1761055476535,0.001,3881.9,3881.6,2.57625721]
[1761055476824,0.55469545,3881.9,3881.7,2.57616847]
[1761055477044,0.55469545,3881.9,3881.8,2.57612447]
[1761055477755,0.55469545,3881.9,3881.7,2.57618635]
[1761055478070,0.55469545,3881.9,3881.8,2.57612447]
[1761055478857,0.001,3881.9,3881.8,3.04492447]
[1761055479180,0.001,3881.9,3881.8,3.60704252]
[1761055479576,0.001,3881.9,3881.8,2.57612447]
[1761055479780,0.001,3881.9,3881.8,3.07068571]
[1761055479943,0.001,3881.9,3881.8,2.57612447]
[1761055480150,0.001,3881.9,3881.7,2.57613122]
[1761055480348,0.001,3881.9,3881.3,3.419]
[1761055480566,0.001,3881.9,3881.8,2.57612447]
[1761055480880,0.001,3881.9,3881.4,0.3419]
[1761055480881,0.001,3881.9,3881.7,2.5761607]
[1761055481180,0.001,3881.9,3881.8,2.57612447]
[1761055481979,0.001,3881.9,3881.6,2.57625721]
[1761055482187,0.2198,3881.9,3881.0,0.2187]
[1761055482346,0.2259,3881.8,3881.0,2.57865233]
[1761055482689,3.419,3881.7,3881.1,0.71126589]
[1761055482858,0.001,3881.9,3881.8,2.57612447]
[1761055483858,0.001,3881.9,3881.6,2.57624391]
[1761055484079,0.001,3881.9,3881.1,0.2167]
[1761055484080,0.001,3881.9,3881.2,0.4688]
[1761055484280,0.001,3881.9,3881.6,2.57620844]
[1761055484483,0.001,3881.9,3881.7,2.57618968]
[1761055484845,0.001,3881.9,3881.8,2.57612447]
[1761055485051,0.001,3881.9,3881.8,3.04492447]
[1761055486082,0.001,3881.9,3881.8,2.57612447]
[1761055486283,0.001,3881.9,3881.7,2.57618181]
[1761055486479,0.001,3881.9,3881.2,0.4688]
[1761055486684,0.001,3881.9,3881.6,2.57621698]
[1761055487013,0.001,3881.9,3881.7,2.57617659]
[1761055487211,0.001,3881.9,3881.2,0.4688]
[1761055487399,0.001,3881.9,3881.8,2.57612447]
[1761055487981,0.001,3881.9,3881.6,2.57625721]
[1761055488409,0.001,3881.9,3881.7,2.57617515]
[1761055488615,0.001,3881.9,3881.8,2.57612447]
[1761055489688,0.001,3881.9,3881.7,2.57616684]
[1761055489908,0.001,3881.9,3881.4,0.1288]
[1761055490214,0.001,3881.9,3881.7,2.57617867]
[1761055490416,0.001,3881.9,3881.8,2.57612447]
[1761055490716,0.001,3881.9,3881.4,0.1288]
[1761055491290,0.84067771,3881.8,3881.4,2.57634649]
[1761055491490,0.1288,3881.7,3881.4,2.57634649]
[1761055491910,0.1288,3881.7,3881.5,2.57631235]
[1761055492181,3.418,3881.6,3881.5,2.57630732]
[1761055492385,3.418,3881.6,3881.4,2.57636963]
[1761055492606,3.418,3881.6,3881.4,2.57638157]
[1761055492810,0.2259,3881.5,3881.0,0.002]
[1761055493013,0.1288,3881.2,3881.0,0.002]
[1761055493211,3.418,3881.1,3881.0,0.002]
[1761055493428,6.77383241,3881.1,3881.0,0.002]
[1761055493731,5.20146259,3881.1,3881.0,0.002]
[1761055494026,7.7780517,3881.1,3881.0,0.002]
[1761055494396,9.5060517,3881.1,3881.0,0.002]
[1761055494926,19.99014018,3881.1,3881.0,0.002]
[1761055495129,2.97363009,3881.1,3881.0,0.002]
[1761055495426,2.97363009,3881.1,3881.0,2.5786555]
[1761055495427,0.5533433,3881.1,3881.0,2.5786555]
[1761055496894,0.5533433,3881.1,3881.0,0.002]
[1761055497310,0.5533433,3881.1,3881.0,2.5786555]
[1761055497710,0.5533433,3881.1,3881.0,0.002]
[1761055498529,0.5533433,3881.1,3881.0,2.5786555]
[1761055499523,0.69228679,3881.8,3881.6,2.57625721]
[1761055499726,0.001,3881.9,3881.8,2.57612447]
[1761055499902,0.001,3881.9,3881.7,2.57618108]
[1761055500108,0.001,3881.9,3881.8,2.57612447]
[1761055500627,0.001,3881.9,3881.8,3.00502447]
[1761055500835,0.001,3881.9,3881.8,3.56315009]
[1761055501552,0.001,3881.9,3881.8,3.58891133]
[1761055501710,0.001,3881.9,3881.8,3.56315009]
[1761055502416,0.001,3881.9,3881.8,3.58891133]
[1761055502611,0.001,3881.9,3881.8,3.56315009]
[1761055504148,0.4458,3881.9,3881.1,0.2154]
[1761055504379,0.4458,3881.9,3881.0,0.002]
[1761055504380,0.2102,3881.8,3881.0,0.002]
[1761055504719,19.43368987,3881.5,3881.0,0.002]
[1761055504938,3.97016569,3881.4,3881.0,0.002]
[1761055505109,3.14521587,3881.3,3881.0,0.002]
[1761055505434,3.417,3881.4,3881.0,0.002]
[1761055505635,3.417,3881.4,3881.1,2.57658911]
[1761055505835,3.417,3881.4,3881.0,0.4309]
[1761055506409,3.417,3881.4,3881.0,0.002]
[1761055506603,3.417,3881.4,3881.1,2.57657986]
[1761055506914,3.417,3881.4,3881.1,2.5765826]
[1761055507243,3.417,3881.4,3881.3,2.57645634]
[1761055507406,3.97081666,3881.4,3881.3,2.57645634]
[1761055507613,0.001,3881.9,3881.8,2.57612447]
[1761055507805,2.28274535,3881.9,3881.8,2.57612447]
[1761055508133,0.55474535,3881.9,3881.8,2.57612447]
[1761055508530,0.001,3881.9,3881.8,3.00502447]
[1761055508734,0.001,3881.9,3881.8,3.52025805]
[1761055508913,0.001,3881.9,3881.8,3.54601929]
[1761055509311,0.001,3881.9,3881.8,4.05289929]
[1761055509531,0.001,3881.9,3881.8,4.15593805]
[1761055510116,0.001,3881.9,3881.8,3.64905805]
[1761055510525,0.001,3881.9,3881.8,4.15593805]
[1761055510856,0.55385479,3883.1,3881.8,4.15593805]
[1761055510857,0.92318679,3884.0,3882.3,0.2154]
[1761055511037,0.69228679,3884.2,3882.8,2.23488]
[1761055511236,0.2305,3884.7,3883.7,2.57486417]
[1761055511551,0.69228679,3884.8,3883.5,3.416]
[1761055511552,0.55301473,3884.8,3883.5,3.416]
[1761055511750,19.64478987,3884.7,3883.1,3.416]
[1761055511965,0.55301473,3884.6,3883.7,2.57481471]
[1761055512171,0.55301473,3884.6,3883.1,3.416]
[1761055512172,2.26180914,3884.5,3883.8,2.57474055]
[1761055512333,3.416,3884.5,3883.5,0.4289]
[1761055513258,3.416,3884.5,3884.4,2.57440016]
[1761055513429,0.7733,3884.9,3884.8,2.57413509]
[1761055513830,0.7733,3884.9,3884.3,2.78981525]
[1761055514146,0.7733,3884.9,3884.4,0.87804027]
[1761055514471,0.7733,3884.9,3884.8,2.57413509]
[1761055515074,0.7733,3884.9,3884.8,0.4289]
[1761055515230,0.7733,3884.9,3884.4,2.57438399]
[1761055515231,0.001,3884.6,3884.4,2.57438399]
[1761055515436,0.001,3884.6,3884.5,2.57433389]
[1761055515851,0.001,3884.6,3884.5,3.00323389]
[1761055516361,0.001,3884.6,3884.3,0.2154]
[1761055516562,0.001,3884.6,3884.3,4.0593]
[1761055516959,0.001,3884.6,3884.4,0.4289]
[1761055517262,0.001,3884.6,3884.3,3.6304]
[1761055517447,0.001,3884.6,3884.3,0.6443]
[1761055517965,0.4415,3884.5,3883.4,0.2154]
[1761055518268,0.4415,3884.5,3883.0,3.8785]
[1761055518465,22.43284074,3884.4,3882.5,3.414]
[1761055518774,2.57461885,3884.1,3882.8,2.57543939]
[1761055519058,2.57485004,3883.8,3882.3,0.2154]
[1761055519257,2.37365399,3883.7,3882.6,2.5755752]
[1761055519427,2.59225399,3883.7,3882.7,2.575526]
[1761055519629,19.65073987,3884.4,3882.8,0.02575461]
[1761055519830,1.728,3884.2,3882.9,2.57539467]
[1761055520169,19.43368987,3883.9,3882.3,0.2154]
[1761055520330,19.43368987,3883.9,3882.4,0.02575726]
[1761055520663,0.128,3883.9,3883.2,0.128]
[1761055520964,0.128,3883.9,3883.2,2.70318272]
[1761055521154,3.414,3884.3,3883.2,1.06064974]
[1761055521337,3.414,3884.3,3883.7,2.70284715]
[1761055521538,3.414,3884.3,3883.7,0.128]
[1761055521938,0.2079,3884.2,3883.7,0.128]
[1761055522138,0.2184,3883.8,3883.7,0.128]
[1761055522330,0.2079,3884.2,3883.7,0.128]
[1761055522531,0.65580532,3884.2,3883.7,0.128]
[1761055522963,0.208,3884.1,3882.6,0.50688]
[1761055523216,0.128,3884.1,3883.4,0.128]
[1761055523333,0.2081,3884.4,3883.1,0.2185]
[1761055523529,0.2081,3884.4,3883.2,2.57519145]
[1761055523730,2.57461116,3884.1,3883.1,0.2185]
[1761055524039,2.57461116,3884.1,3882.7,0.4645]
[1761055524040,0.55849,3884.3,3883.2,0.6906]
[1761055524366,1.9618,3884.5,3883.4,2.575001]
[1761055524567,1.9618,3884.5,3883.5,0.02574996]
[1761055524749,0.001,3884.6,3883.9,2.57467134]
[1761055524943,0.001,3884.6,3884.1,2.57457949]
[1761055525156,0.001,3884.6,3884.3,2.57446558]
[1761055525470,0.001,3884.6,3884.1,2.57459753]
[1761055525662,0.001,3884.6,3884.4,2.57438797]
[1761055525858,0.001,3884.6,3884.2,2.8793049]
[1761055526163,0.001,3884.6,3884.3,2.57444552]
[1761055526572,0.001,3884.6,3884.4,2.57437357]
[1761055526963,0.001,3884.6,3884.2,0.30481975]
[1761055527166,0.001,3884.6,3884.0,3.413]
[1761055527167,0.001,3884.6,3884.5,2.57433389]
[1761055527664,0.001,3884.6,3884.5,3.04793389]
[1761055528099,0.001,3884.6,3884.5,3.07367722]
[1761055528295,0.001,3884.6,3884.5,3.04793389]
[1761055528497,0.001,3884.6,3884.5,3.08121389]
[1761055528702,0.001,3884.6,3884.5,4.16013391]
[1761055529265,0.001,3884.6,3884.5,9.30113391]
[1761055529593,0.001,3884.6,3884.5,0.60532002]
[1761055529797,0.001,3884.6,3883.6,0.4736]
[1761055529962,0.001,3884.6,3884.0,0.4736]
[1761055530587,0.001,3884.6,3884.1,2.57459564]
[1761055530786,0.001,3884.6,3884.0,0.4736]
[1761055530989,0.001,3884.6,3883.8,1.699]
[1761055531198,0.2058,3884.5,3883.6,2.57487039]
[1761055531375,0.2058,3884.5,3883.1,0.4736]
[1761055531776,2.51104899,3884.5,3883.4,2.57505628]
[1761055532096,0.001,3884.6,3884.0,2.57461793]
[1761055532297,0.001,3884.6,3883.9,0.4736]
[1761055532598,0.001,3884.6,3883.6,2.57491939]
[1761055532898,0.001,3884.6,3883.5,0.98048]
[1761055533085,0.001,3884.6,3884.0,2.57464772]
[1761055533293,0.001,3884.6,3884.4,0.128]
[1761055533890,0.2055,3884.5,3883.4,3.412]
[1761055534196,0.3335,3884.5,3883.8,0.128]
[1761055534398,0.64802859,3884.5,3883.8,0.128]
[1761055534564,0.2055,3884.4,3883.8,0.128]
[1761055535370,0.128,3884.5,3883.8,0.128]
[1761055535878,0.3335,3884.5,3883.8,0.128]
[1761055536264,3.412,3884.4,3883.8,0.128]
[1761055536665,3.6175,3884.4,3883.8,0.128]
[1761055537567,0.37465,3884.3,3883.8,0.128]
[1761055537817,0.2182,3883.9,3882.9,3.412]
[1761055537967,0.2182,3883.9,3883.4,0.128]
[1761055538499,0.4239,3883.9,3883.4,0.128]
[1761055538875,2.57493047,3883.6,3882.4,0.002]
[1761055539079,23.05138987,3883.8,3882.7,0.128]
[1761055539080,2.57520439,3883.2,3882.7,0.128]
[1761055539397,0.128,3883.0,3882.4,0.13]
[1761055540190,3.412,3883.2,3882.4,0.002]
[1761055540412,3.412,3883.2,3882.6,0.128]
[1761055540868,0.1883,3883.1,3882.6,0.128]
[1761055541074,0.128,3883.0,3882.4,0.13]
[1761055541482,0.1883,3882.9,3882.4,0.002]
[1761055541705,2.57566001,3882.5,3882.4,0.002]
[1761055541912,6.54095961,3882.5,3882.4,0.002]
[1761055542155,7.70974386,3882.5,3882.4,0.002]
[1761055543018,5.13408385,3882.5,3882.4,0.002]
[1761055543207,0.5532996,3882.5,3882.4,0.002]
[1761055543434,0.128,3883.3,3882.4,0.62935726]
[1761055543773,0.2365,3881.7,3879.4,0.217]
[1761055544044,0.2365,3881.7,3879.1,0.6906]
[1761055544045,7.679768,3880.9,3879.1,0.6906]
[1761055544219,1.9645,3880.7,3879.1,0.6906]
[1761055544425,2.28045114,3880.7,3879.6,0.4736]
[1761055544621,2.28045114,3880.7,3880.1,0.217]
[1761055545019,1.728,3880.7,3879.6,3.05118242]
[1761055545207,2.27908596,3880.7,3879.7,2.57750225]
[1761055545410,1.728,3880.7,3879.7,2.57750225]
[1761055545821,1.728,3880.7,3879.6,3.05117886]
[1761055546514,2.97142768,3880.7,3879.6,0.4736]
[1761055546915,2.97142768,3880.7,3879.6,3.05117627]
[1761055547111,3.86216925,3880.8,3879.6,0.4736]
[1761055547313,6.03231849,3881.6,3880.3,0.4736]
[1761055547623,6.0322594,3881.6,3880.4,0.02577053]
[1761055547827,19.67018987,3881.7,3880.6,0.02776921]
[1761055548014,0.236,3881.9,3880.7,0.4736]
[1761055548213,6.03197919,3882.1,3880.8,2.57676648]
[1761055548422,2.59205018,3882.0,3880.9,2.57671012]
[1761055548624,3.456,3882.1,3880.7,3.05043612]
[1761055548851,3.6418,3882.1,3880.7,0.4736]
[1761055549049,2.57599175,3882.0,3880.7,0.4736]
[1761055549246,22.00990992,3881.7,3880.6,0.002]